[Event "Swedish Chess Championship 2021: Junior-SM"]
[Site "Scandic Helsingborg Nord, Florettgatan 41, Helsingborg, Sweden"]
[Date "2021.07.08"]
[Round "6.2"]
[White "Petersson, Baldur Teodor"]
[Black "Falkevall, Axel"]
[Result "0-1"]
[TimeControl "90 minutes for 40 moves + 30 minutes for the rest of the game + 30 seconds per move from move one."]
[WhiteTitle "CM"]
[BlackTitle "CM"]
[WhiteFideId "2309157"]
[BlackFideId "1735560"]
[WhiteElo "2230"]
[BlackElo "2209"]
1. e4 {[%clk 01:30:53]} {[%emt 00:00:06]} e6 {[%clk 01:30:55]} {[%emt
00:00:05]} 2. d3 {[%clk 01:31:06]} {[%emt 00:00:18]} d5 {[%clk 01:31:17]}
{[%emt 00:00:07]} 3. Nd2 {[%clk 01:31:29]} {[%emt 00:00:07]} Nf6 {[%clk
01:31:40]} {[%emt 00:00:07]} 4. Ngf3 {[%clk 01:31:53]} {[%emt 00:00:07]} Nc6
{[%clk 01:31:54]} {[%emt 00:00:15]} 5. c3 {[%clk 01:32:02]} {[%emt 00:00:21]}
Bd6 {[%clk 01:32:15]} {[%emt 00:00:09]} 6. b4 {[%clk 01:31:07]} {[%emt
00:01:25]} e5 {[%clk 01:30:05]} {[%emt 00:02:40]} 7. a3 {[%clk 01:26:01]}
{[%emt 00:05:36]} O-O {[%clk 01:20:25]} {[%emt 00:10:09]} 8. Qc2 {[%clk
01:22:16]} {[%emt 00:04:16]} Re8 {[%clk 01:17:54]} {[%emt 00:03:01]} 9. Bb2
{[%clk 01:19:32]} {[%emt 00:03:14]} a5 {[%clk 01:10:46]} {[%emt 00:07:38]} 10.
b5 {[%clk 01:11:20]} {[%emt 00:08:41]} Ne7 {[%clk 01:10:01]} {[%emt 00:01:16]}
11. c4 {[%clk 01:08:33]} {[%emt 00:03:17]} dxe4 {[%clk 01:09:25]} {[%emt
00:01:05]} 12. dxe4 {[%clk 01:08:57]} {[%emt 00:00:06]} b6 {[%clk 01:00:23]}
{[%emt 00:09:33]} 13. c5 {[%clk 01:01:36]} {[%emt 00:07:50]} Bxc5 {[%clk
00:58:45]} {[%emt 00:02:08]} 14. Nxe5 {[%clk 00:45:04]} {[%emt 00:17:01]} Ng6
{[%clk 00:49:34]} {[%emt 00:09:41]} 15. Nxg6 {[%clk 00:44:30]} {[%emt
00:01:04]} hxg6 {[%clk 00:49:00]} {[%emt 00:01:04]} 16. Be2 {[%clk 00:42:11]}
{[%emt 00:02:49]} Bb7 {[%clk 00:44:52]} {[%emt 00:04:38]} 17. Bf3 {[%clk
00:40:00]} {[%emt 00:02:40]} Nxe4 {[%clk 00:36:41]} {[%emt 00:08:42]} 18. Nxe4
{[%clk 00:33:12]} {[%emt 00:07:19]} Bxe4 {[%clk 00:36:33]} {[%emt 00:00:38]} 19.
Bxe4 {[%clk 00:33:37]} {[%emt 00:00:05]} Qh4 {[%clk 00:35:41]} {[%emt
00:01:22]} 20. O-O {[%clk 00:31:54]} {[%emt 00:02:13]} Rxe4 {[%clk 00:32:08]}
{[%emt 00:04:03]} 21. Qc3 {[%clk 00:29:53]} {[%emt 00:02:32]} f6 {[%clk
00:25:30]} {[%emt 00:07:07]} 22. Rad1 {[%clk 00:29:30]} {[%emt 00:00:53]} Bd6
{[%clk 00:24:29]} {[%emt 00:01:32]} 23. g3 {[%clk 00:29:54]} {[%emt 00:00:06]}
Qh3 {[%clk 00:22:18]} {[%emt 00:02:41]} 24. Rd4 {[%clk 00:26:02]} {[%emt
00:04:22]} Rxd4 {[%clk 00:20:12]} {[%emt 00:02:36]} 25. Qxd4 {[%clk 00:26:26]}
{[%emt 00:00:06]} Re8 {[%clk 00:18:59]} {[%emt 00:01:43]} 26. Qd5+ {[%clk
00:26:24]} {[%emt 00:00:32]} Qe6 {[%clk 00:18:27]} {[%emt 00:01:02]} 27. Qd3
{[%clk 00:26:49]} {[%emt 00:00:05]} Kh7 {[%clk 00:17:01]} {[%emt 00:01:56]} 28.
Rc1 {[%clk 00:19:09]} {[%emt 00:08:10]} Qe2 {[%clk 00:14:56]} {[%emt 00:02:35]}
29. Qxe2 {[%clk 00:16:02]} {[%emt 00:03:37]} Rxe2 {[%clk 00:15:23]} {[%emt
00:00:02]} 30. Bd4 {[%clk 00:16:26]} {[%emt 00:00:07]} g5 {[%clk 00:12:40]}
{[%emt 00:03:14]} 31. Be3 {[%clk 00:09:07]} {[%emt 00:07:49]} Rb2 {[%clk
00:10:11]} {[%emt 00:02:59]} 32. a4 {[%clk 00:09:29]} {[%emt 00:00:08]} Rb3
{[%clk 00:10:03]} {[%emt 00:00:38]} 33. Rc6 {[%clk 00:09:15]} {[%emt 00:00:44]}
Rd3 {[%clk 00:09:42]} {[%emt 00:00:50]} 34. Kf1 {[%clk 00:09:31]} {[%emt
00:00:14]} Kg6 {[%clk 00:09:12]} {[%emt 00:01:00]} 35. Ke2 {[%clk 00:09:10]}
{[%emt 00:00:51]} Rd5 {[%clk 00:09:09]} {[%emt 00:00:33]} 36. h3 {[%clk
00:06:15]} {[%emt 00:03:25]} Kf5 {[%clk 00:06:56]} {[%emt 00:02:43]} 37. g4+
{[%clk 00:06:16]} {[%emt 00:00:28]} Ke6 {[%clk 00:06:46]} {[%emt 00:00:40]} 38.
f4 {[%clk 00:05:20]} {[%emt 00:01:26]} gxf4 {[%clk 00:02:58]} {[%emt 00:04:18]}
39. Bxf4 {[%clk 00:05:48]} {[%emt 00:00:02]} Kd7 {[%clk 00:02:50]} {[%emt
00:00:38]} 40. Bxd6 {[%clk 00:04:43]} {[%emt 00:01:35]} Rxd6 {[%clk 00:03:17]}
{[%emt 00:00:03]} 41. Rc4 {[%clk 00:04:49]} {[%emt 00:00:23]} Rd5 {[%clk
00:27:15]} {[%emt 00:06:32]} 42. Ke3 {[%clk 00:33:19]} {[%emt 00:02:00]} Rc5
{[%clk 00:24:00]} {[%emt 00:03:45]} 43. Rd4+ {[%clk 00:33:31]} {[%emt
00:00:18]} Ke6 {[%clk 00:23:48]} {[%emt 00:00:42]} 44. h4 {[%clk 00:33:41]}
{[%emt 00:00:20]} Rc3+ {[%clk 00:23:24]} {[%emt 00:00:54]} 45. Kd2 {[%clk
00:26:31]} {[%emt 00:07:40]} Rg3 {[%clk 00:18:25]} {[%emt 00:05:29]} 46. h5
{[%clk 00:25:00]} {[%emt 00:02:01]} Rg2+ {[%clk 00:11:11]} {[%emt 00:07:43]} 47.
Kd3 {[%clk 00:23:29]} {[%emt 00:02:01]} Rg3+ {[%clk 00:11:15]} {[%emt
00:00:26]} 48. Kd2 {[%clk 00:23:54]} {[%emt 00:00:05]} Ke7 {[%clk 00:09:37]}
{[%emt 00:02:08]} 49. Re4+ {[%clk 00:11:13]} {[%emt 00:13:11]} Kd7 {[%clk
00:09:25]} {[%emt 00:00:41]} 50. Rd4+ {[%clk 00:11:36]} {[%emt 00:00:07]} Kc8
{[%clk 00:09:07]} {[%emt 00:00:47]} 51. Re4 {[%clk 00:11:40]} {[%emt 00:00:27]}
Kd7 {[%clk 00:08:44]} {[%emt 00:00:53]} 52. Rd4+ {[%clk 00:12:05]} {[%emt
00:00:05]} Ke6 {[%clk 00:08:27]} {[%emt 00:00:47]} 53. Rc4 {[%clk 00:12:08]}
{[%emt 00:00:27]} Kd5 {[%clk 00:04:43]} {[%emt 00:04:14]} 54. Rxc7 {[%clk
00:12:33]} {[%emt 00:00:06]} Rxg4 {[%clk 00:05:10]} {[%emt 00:00:03]} 55. Rc6
{[%clk 00:09:07]} {[%emt 00:03:54]} Rxa4 {[%clk 00:05:29]} {[%emt 00:00:12]} 56.
Rxb6 {[%clk 00:04:08]} {[%emt 00:05:29]} Kc5 {[%clk 00:05:30]} {[%emt
00:00:28]} 57. Re6 {[%clk 00:04:29]} {[%emt 00:00:10]} Kxb5 {[%clk 00:04:34]}
{[%emt 00:01:26]} 58. h6 {[%clk 00:04:55]} {[%emt 00:00:03]} gxh6 {[%clk
00:04:47]} {[%emt 00:00:17]} 59. Rxf6 {[%clk 00:05:21]} {[%emt 00:00:04]} Rh4
{[%clk 00:05:04]} {[%emt 00:00:12]} 60. Kc3 {[%clk 00:05:42]} {[%emt 00:00:09]}
a4 {[%clk 00:03:57]} {[%emt 00:01:37]} 61. Rf5+ {[%clk 00:05:30]} {[%emt
00:00:42]} Kc6 {[%clk 00:04:07]} {[%emt 00:00:19]} 62. Ra5 {[%clk 00:05:33]}
{[%emt 00:00:27]} a3 {[%clk 00:03:18]} {[%emt 00:01:19]} 63. Kb3 {[%clk
00:05:46]} {[%emt 00:00:16]} Rh3+ {[%clk 00:03:43]} {[%emt 00:00:05]} 64. Ka2
{[%clk 00:06:11]} {[%emt 00:00:05]} Kd6 {[%clk 00:03:44]} {[%emt 00:00:29]} 65.
Rb5 {[%clk 00:06:05]} {[%emt 00:00:36]} Ke6 {[%clk 00:03:40]} {[%emt 00:00:33]}
66. Ra5 {[%clk 00:06:16]} {[%emt 00:00:19]} Kf6 {[%clk 00:03:55]} {[%emt
00:00:15]} 67. Ra6+ {[%clk 00:04:42]} {[%emt 00:02:05]} Ke5 {[%clk 00:03:34]}
{[%emt 00:00:50]} 68. Ra5+ {[%clk 00:05:05]} {[%emt 00:00:07]} Kd4 {[%clk
00:03:39]} {[%emt 00:00:25]} 69. Ra4+ {[%clk 00:05:18]} {[%emt 00:00:18]} Kc5
{[%clk 00:04:01]} {[%emt 00:00:08]} 70. Ra8 {[%clk 00:04:24]} {[%emt 00:01:24]}
h5 {[%clk 00:04:09]} {[%emt 00:00:21]} 71. Ra7 {[%clk 00:04:07]} {[%emt
00:00:47]} h4 {[%clk 00:04:09]} {[%emt 00:00:30]} 72. Rh7 {[%clk 00:04:28]}
{[%emt 00:00:08]} Kd5 {[%clk 00:04:23]} {[%emt 00:00:16]} 73. Rh8 {[%clk
00:04:23]} {[%emt 00:00:35]} Ke5 {[%clk 00:04:29]} {[%emt 00:00:25]} 74. Re8+
{[%clk 00:02:16]} {[%emt 00:02:37]} Kf5 {[%clk 00:04:04]} {[%emt 00:00:55]} 75.
Rf8+ {[%clk 00:02:04]} {[%emt 00:00:42]} Kg5 {[%clk 00:03:46]} {[%emt
00:00:48]} 76. Rg8+ {[%clk 00:02:26]} {[%emt 00:00:08]} Kh5 {[%clk 00:02:09]}
{[%emt 00:02:07]} 77. Rh8+ {[%clk 00:01:50]} {[%emt 00:01:06]} Kg6 {[%clk
00:02:05]} {[%emt 00:00:34]} 78. Rg8+ {[%clk 00:01:21]} {[%emt 00:00:59]} Kh6
{[%clk 00:02:26]} {[%emt 00:00:09]} 79. Rh8+ {[%clk 00:01:32]} {[%emt
00:00:19]} Kg7 {[%clk 00:02:01]} {[%emt 00:00:55]} 80. Rh5 {[%clk 00:01:54]}
{[%emt 00:00:08]} Kg6 {[%clk 00:02:22]} {[%emt 00:00:09]} 81. Rh8 {[%clk
00:02:19]} {[%emt 00:00:04]} Kg5 {[%clk 00:02:23]} {[%emt 00:00:29]} 82. Rg8+
{[%clk 00:02:43]} {[%emt 00:00:06]} Kf4 {[%clk 00:02:26]} {[%emt 00:00:27]} 83.
Rh8 {[%clk 00:02:54]} {[%emt 00:00:20]} Kg4 {[%clk 00:02:20]} {[%emt 00:00:36]}
84. Rg8+ {[%clk 00:03:09]} {[%emt 00:00:15]} Kf3 {[%clk 00:02:22]} {[%emt
00:00:29]} 85. Rf8+ {[%clk 00:02:39]} {[%emt 00:01:00]} Kg2 {[%clk 00:02:13]}
{[%emt 00:00:38]} 86. Rh8 {[%clk 00:03:04]} {[%emt 00:00:05]} Rh1 {[%clk
00:01:24]} {[%emt 00:01:19]} 87. Kxa3 {[%clk 00:03:28]} {[%emt 00:00:07]} h3
{[%clk 00:01:42]} {[%emt 00:00:11]} 88. Rg8+ {[%clk 00:02:50]} {[%emt
00:01:08]} Kh2 {[%clk 00:02:04]} {[%emt 00:00:09]} 89. Kb2 {[%clk 00:03:04]}
{[%emt 00:00:16]} Rg1 {[%clk 00:01:55]} {[%emt 00:00:39]} 90. Rh8 {[%clk
00:03:08]} {[%emt 00:00:26]} Kg2 {[%clk 00:02:06]} {[%emt 00:00:19]} 91. Rg8
{[%clk 00:03:09]} {[%emt 00:00:29]} Kh1 {[%clk 00:02:27]} {[%emt 00:00:10]} 92.
Rh8 {[%clk 00:03:34]} {[%emt 00:00:04]} h2 {[%clk 00:02:43]} {[%emt 00:00:13]}
93. Kc2 {[%clk 00:03:57]} {[%emt 00:00:07]} Rg2+ {[%clk 00:03:03]} {[%emt
00:00:10]} 0-1

[Event "Swedish Chess Championship 2021: Junior-SM"]
[Site "Scandic Helsingborg Nord, Florettgatan 41, Helsingborg, Sweden"]
[Date "2021.07.08"]
[Round "6.3"]
[White "Carlsson, Ludvig"]
[Black "Pantzar, Milton"]
[Result "1-0"]
[TimeControl "90 minutes for 40 moves + 30 minutes for the rest of the game + 30 seconds per move from move one."]
[WhiteTitle "CM"]
[BlackTitle "IM"]
[WhiteFideId "1727010"]
[BlackFideId "1721003"]
[WhiteElo "2258"]
[BlackElo "2421"]
1. e4 {[%clk 01:30:54]} {[%emt 00:00:04]} c6 {[%clk 01:30:51]} {[%emt
00:00:10]} 2. Nf3 {[%clk 01:31:17]} {[%emt 00:00:07]} d5 {[%clk 01:31:15]}
{[%emt 00:00:07]} 3. d3 {[%clk 01:31:40]} {[%emt 00:00:06]} dxe4 {[%clk
01:31:20]} {[%emt 00:00:26]} 4. dxe4 {[%clk 01:32:02]} {[%emt 00:00:08]} Qxd1+
{[%clk 01:31:43]} {[%emt 00:00:07]} 5. Kxd1 {[%clk 01:32:26]} {[%emt 00:00:05]}
Nf6 {[%clk 01:30:47]} {[%emt 00:01:27]} 6. Nbd2 {[%clk 01:32:47]} {[%emt
00:00:08]} g6 {[%clk 01:29:24]} {[%emt 00:01:54]} 7. Ne1 {[%clk 01:33:05]}
{[%emt 00:00:11]} Bh6 {[%clk 01:24:59]} {[%emt 00:04:56]} 8. f3 {[%clk
01:31:42]} {[%emt 00:01:52]} Be6 {[%clk 01:20:25]} {[%emt 00:05:06]} 9. a4
{[%clk 01:18:27]} {[%emt 00:13:45]} a5 {[%clk 01:12:31]} {[%emt 00:08:25]} 10.
b3 {[%clk 01:14:33]} {[%emt 00:04:23]} Nfd7 {[%clk 01:03:21]} {[%emt 00:09:40]}
11. Bb2 {[%clk 01:10:23]} {[%emt 00:04:40]} f6 {[%clk 01:03:14]} {[%emt
00:00:37]} 12. Bc4 {[%clk 01:08:40]} {[%emt 00:02:11]} Nc5 {[%clk 00:56:31]}
{[%emt 00:07:14]} 13. Bxe6 {[%clk 01:07:04]} {[%emt 00:02:07]} Nxe6 {[%clk
00:56:54]} {[%emt 00:00:07]} 14. Nc4 {[%clk 01:07:23]} {[%emt 00:00:10]} Na6
{[%clk 00:49:11]} {[%emt 00:08:14]} 15. Bc3 {[%clk 00:56:00]} {[%emt 00:11:53]}
b5 {[%clk 00:21:49]} {[%emt 00:27:53]} 16. Nxa5 {[%clk 00:49:37]} {[%emt
00:06:52]} O-O-O+ {[%clk 00:19:28]} {[%emt 00:02:50]} 17. Nd3 {[%clk 00:49:59]}
{[%emt 00:00:08]} Rd6 {[%clk 00:17:34]} {[%emt 00:02:25]} 18. e5 {[%clk
00:47:45]} {[%emt 00:02:44]} fxe5 {[%clk 00:15:24]} {[%emt 00:02:41]} 19. Nxc6
{[%clk 00:44:32]} {[%emt 00:03:42]} Rxc6 {[%clk 00:11:45]} {[%emt 00:04:09]} 20.
Bxe5 {[%clk 00:44:55]} {[%emt 00:00:07]} bxa4 {[%clk 00:11:59]} {[%emt
00:00:17]} 21. Bxh8 {[%clk 00:45:10]} {[%emt 00:00:15]} axb3 {[%clk 00:12:23]}
{[%emt 00:00:06]} 22. cxb3 {[%clk 00:45:16]} {[%emt 00:00:23]} Nac7 {[%clk
00:05:09]} {[%emt 00:07:45]} 23. g3 {[%clk 00:42:12]} {[%emt 00:03:33]} Nd5
{[%clk 00:04:20]} {[%emt 00:01:19]} 24. f4 {[%clk 00:41:17]} {[%emt 00:01:25]}
g5 {[%clk 00:04:45]} {[%emt 00:00:05]} 25. f5 {[%clk 00:35:41]} {[%emt
00:06:06]} Nec7 {[%clk 00:04:18]} {[%emt 00:00:57]} 26. Rc1 {[%clk 00:30:37]}
{[%emt 00:05:34]} Rb6 {[%clk 00:04:42]} {[%emt 00:00:07]} 27. b4 {[%clk
00:30:38]} {[%emt 00:00:28]} g4 {[%clk 00:04:18]} {[%emt 00:00:53]} 28. Rc5
{[%clk 00:31:03]} {[%emt 00:00:05]} Ra6 {[%clk 00:03:16]} {[%emt 00:01:33]} 29.
Be5 {[%clk 00:30:11]} {[%emt 00:01:21]} Ra2 {[%clk 00:02:06]} {[%emt 00:01:41]}
30. Nf4 {[%clk 00:29:21]} {[%emt 00:01:20]} Bxf4 {[%clk 00:01:38]} {[%emt
00:00:57]} 31. gxf4 {[%clk 00:29:47]} {[%emt 00:00:05]} Kd7 {[%clk 00:01:09]}
{[%emt 00:01:00]} 32. Kc1 {[%clk 00:29:44]} {[%emt 00:00:31]} e6 {[%clk
00:00:51]} {[%emt 00:00:50]} 33. fxe6+ {[%clk 00:29:59]} {[%emt 00:00:15]} Kxe6
{[%clk 00:01:15]} {[%emt 00:00:06]} 34. Kb1 {[%clk 00:30:06]} {[%emt 00:00:23]}
1-0

[Event "Swedish Chess Championship 2021: Junior-SM"]
[Site "Scandic Helsingborg Nord, Florettgatan 41, Helsingborg, Sweden"]
[Date "2021.07.08"]
[Round "6.4"]
[White "Torngren, Gustav"]
[Black "Olsson, William"]
[Result "0-1"]
[TimeControl "90 minutes for 40 moves + 30 minutes for the rest of the game + 30 seconds per move from move one."]
[WhiteTitle "FM"]
[WhiteFideId "1728970"]
[BlackFideId "1741721"]
[WhiteElo "2307"]
[BlackElo "2221"]
1. e3 {[%clk 01:30:58]} {[%emt 00:00:01]} g6 {[%clk 01:29:05]} {[%emt
00:01:55]} 2. c4 {[%clk 01:27:47]} {[%emt 00:03:41]} Bg7 {[%clk 01:29:26]}
{[%emt 00:00:09]} 3. Nc3 {[%clk 01:27:39]} {[%emt 00:00:38]} Nf6 {[%clk
01:28:49]} {[%emt 00:01:05]} 4. Nf3 {[%clk 01:25:52]} {[%emt 00:02:18]} O-O
{[%clk 01:28:59]} {[%emt 00:00:21]} 5. d4 {[%clk 01:25:37]} {[%emt 00:00:45]}
d6 {[%clk 01:24:10]} {[%emt 00:05:20]} 6. Be2 {[%clk 01:25:57]} {[%emt
00:00:10]} Nc6 {[%clk 01:23:06]} {[%emt 00:01:34]} 7. O-O {[%clk 01:20:26]}
{[%emt 00:06:00]} e5 {[%clk 01:23:18]} {[%emt 00:00:18]} 8. d5 {[%clk
01:19:33]} {[%emt 00:01:24]} Ne7 {[%clk 01:23:43]} {[%emt 00:00:04]} 9. e4
{[%clk 01:19:44]} {[%emt 00:00:20]} a5 {[%clk 01:19:35]} {[%emt 00:04:38]} 10.
Ne1 {[%clk 01:17:33]} {[%emt 00:02:40]} Ne8 {[%clk 01:15:48]} {[%emt 00:04:18]}
11. Nd3 {[%clk 01:17:54]} {[%emt 00:00:08]} f5 {[%clk 01:11:59]} {[%emt
00:04:19]} 12. Bd2 {[%clk 01:18:15]} {[%emt 00:00:08]} Nf6 {[%clk 01:01:53]}
{[%emt 00:10:37]} 13. f3 {[%clk 01:18:37]} {[%emt 00:00:08]} c5 {[%clk
00:51:43]} {[%emt 00:10:40]} 14. a3 {[%clk 01:13:11]} {[%emt 00:05:56]} Bd7
{[%clk 00:46:41]} {[%emt 00:05:31]} 15. b3 {[%clk 01:12:47]} {[%emt 00:00:54]}
f4 {[%clk 00:42:37]} {[%emt 00:04:35]} 16. g4 {[%clk 01:13:06]} {[%emt
00:00:10]} g5 {[%clk 00:39:47]} {[%emt 00:03:21]} 17. Rb1 {[%clk 01:10:14]}
{[%emt 00:03:21]} h5 {[%clk 00:38:27]} {[%emt 00:01:49]} 18. h3 {[%clk
01:10:36]} {[%emt 00:00:08]} Kf7 {[%clk 00:37:22]} {[%emt 00:01:35]} 19. b4
{[%clk 01:08:20]} {[%emt 00:02:46]} axb4 {[%clk 00:37:13]} {[%emt 00:00:40]} 20.
axb4 {[%clk 01:08:47]} {[%emt 00:00:02]} b6 {[%clk 00:37:37]} {[%emt 00:00:06]}
21. bxc5 {[%clk 01:06:47]} {[%emt 00:02:29]} bxc5 {[%clk 00:37:55]} {[%emt
00:00:12]} 22. Rb7 {[%clk 00:52:12]} {[%emt 00:15:05]} Bc8 {[%clk 00:35:48]}
{[%emt 00:02:36]} 23. Rb3 {[%clk 00:49:57]} {[%emt 00:02:46]} Rh8 {[%clk
00:35:12]} {[%emt 00:01:05]} 24. Kg2 {[%clk 00:48:59]} {[%emt 00:01:28]} Rh6
{[%clk 00:30:57]} {[%emt 00:04:45]} 25. Nb5 {[%clk 00:46:22]} {[%emt 00:03:08]}
Bf8 {[%clk 00:25:56]} {[%emt 00:05:30]} 26. Be1 {[%clk 00:35:02]} {[%emt
00:11:51]} Ng6 {[%clk 00:23:52]} {[%emt 00:02:34]} 27. Bf2 {[%clk 00:34:40]}
{[%emt 00:00:52]} Bd7 {[%clk 00:22:03]} {[%emt 00:02:19]} 28. Qb1 {[%clk
00:31:25]} {[%emt 00:03:45]} Kg8 {[%clk 00:19:46]} {[%emt 00:02:46]} 29. Nc3
{[%clk 00:28:57]} {[%emt 00:02:58]} Qe7 {[%clk 00:18:11]} {[%emt 00:02:05]} 30.
Rh1 {[%clk 00:27:56]} {[%emt 00:01:31]} Qh7 {[%clk 00:13:10]} {[%emt 00:05:31]}
31. Rb7 {[%clk 00:27:56]} {[%emt 00:00:30]} Kf7 {[%clk 00:12:42]} {[%emt
00:00:58]} 32. Qb5 {[%clk 00:18:29]} {[%emt 00:09:56]} Rd8 {[%clk 00:12:51]}
{[%emt 00:00:22]} 33. Qb6 {[%clk 00:18:44]} {[%emt 00:00:15]} Be7 {[%clk
00:09:40]} {[%emt 00:03:41]} 34. Nxc5 {[%clk 00:17:57]} {[%emt 00:01:17]} hxg4
{[%clk 00:09:49]} {[%emt 00:00:21]} 35. Ne6 {[%clk 00:16:59]} {[%emt 00:01:28]}
Bxe6 {[%clk 00:07:40]} {[%emt 00:02:39]} 36. Qxd8 {[%clk 00:15:34]} {[%emt
00:01:56]} gxf3+ {[%clk 00:07:29]} {[%emt 00:00:41]} 37. Bxf3 {[%clk 00:15:32]}
{[%emt 00:00:32]} Bxh3+ {[%clk 00:07:19]} {[%emt 00:00:39]} 38. Kg1 {[%clk
00:16:01]} {[%emt 00:00:01]} g4 {[%clk 00:06:59]} {[%emt 00:00:50]} 39. Nb5
{[%clk 00:15:01]} {[%emt 00:01:30]} Ne8 {[%clk 00:06:31]} {[%emt 00:00:58]} 40.
Nxd6+ {[%clk 00:13:06]} {[%emt 00:02:25]} Nxd6 {[%clk 00:06:47]} {[%emt
00:00:14]} 41. Qxd6 {[%clk 00:13:29]} {[%emt 00:00:08]} gxf3 {[%clk 00:05:43]}
{[%emt 00:02:32]} 42. Bc5 {[%clk 00:11:53]} Bd7 {[%clk 00:05:38]} {[%emt
00:01:43]} 43. Rxh6 {[%clk 00:11:08]} {[%emt 00:01:14]} Qxh6 {[%clk 00:06:01]}
{[%emt 00:00:07]} 44. Qxd7 {[%clk 00:11:06]} {[%emt 00:00:32]} Qg5+ {[%clk
00:06:27]} {[%emt 00:00:04]} 45. Kh1 {[%clk 00:11:33]} {[%emt 00:00:03]} Qg2#
{[%clk 00:06:49]} {[%emt 00:00:08]} 0-1